Cogmind - Beta 13 @@@ ROGUE MODE // 2024.05.23 @ 19:41:51 Player: Sunsh1n3 Result: Destroyed by Y-45 Defender with Heavy Assault Rifle Performance ------------- Evolutions (2) 1000 Regions Visited (4) 800 Robots Destroyed (19) 95 Value Destroyed (623) 623 Prototype IDs (0) 0 Alien Tech Used (0) 0 Bonus (0) 0 TOTAL SCORE: 2518 Bonus ------- None Cogmind --------- Core Integrity 0/550 Matter 300/300 Energy 265/265 System Corruption 7% Temperature Cool (0) Movement Walking (400) Ox4 Location -8/Materials Parts ------- > --- POWER (1) -------- Reinforced Ion Engine > --- PROPULSION (4) --- Light Treads Aluminum Leg Aluminum Leg > --- UTILITY (4) ------ Huge Storage Unit Melee Analysis Suite Melee Analysis Suite Reaction Control System > --- WEAPON (2) ------- Katana Blade Saw > --- INVENTORY (25) --- Ion Engine Improved Ion Engine Light Nuclear Core Surge Thruster Surge Thruster Sensor Array Grenade Launcher Scythe Scythe Peak State ------------ > --- POWER ------------ Reinforced Ion Engine > --- PROPULSION ------- Light Treads Aluminum Leg Aluminum Leg > --- UTILITY ---------- Huge Storage Unit Melee Analysis Suite Melee Analysis Suite Reaction Control System > --- WEAPON ----------- Katana Blade Saw > --- INVENTORY -------- Ion Engine Improved Ion Engine Light Nuclear Core Surge Thruster Surge Thruster Sensor Array Grenade Launcher Scythe Scythe [Rating: 23] Favorites ----------- Power Ion Engine Engine Ion Engine Propulsion Aluminum Leg Treads Light Treads Leg Aluminum Leg Utility Small Storage Unit Device ECM Suite Storage Small Storage Unit Processor Signal Interpreter Weapon Medium Laser Energy Gun Medium Laser Ballistic Gun Light Assault Rifle Slashing Weapon Katana Build | -11 -10 -10 -9 -8 ------- Run | Yrd Mat Min Mat Mat Slots Evolved 4 | . . . 2 2 Power . | . . . . . Propulsion 2 | . . . 2 . Utility 2 | . . . . 2 Weapon . | . . . . . Parts Attached 36 | 6 3 1 3 23 Power 4 | 1 . . . 3 Engine 4 | 1 . . . 3 Core . | . . . . . Reactor . | . . . . . Propulsion 13 | 2 1 . 3 7 Treads 6 | . . . 2 4 Leg 7 | 2 1 . 1 3 Wheel . | . . . . . Hover . | . . . . . Flight . | . . . . . Utility 9 | 1 1 . . 7 Device 4 | . 1 . . 3 Storage 2 | 1 . . . 1 Processor 3 | . . . . 3 Hackware . | . . . . . Protection . | . . . . . Artifact . | . . . . . Weapon 10 | 2 1 1 . 6 Energy Gun 1 | 1 . . . . Energy Cannon . | . . . . . Ballistic Gun 4 | 1 1 1 . 1 Ballistic Cannon . | . . . . . Launcher . | . . . . . Special Weapon . | . . . . . Impact Weapon . | . . . . . Slashing Weapon 5 | . . . . 5 Piercing Weapon . | . . . . . Special Melee Weapon . | . . . . . Unidentified Prototypes . | . . . . . Parts Lost 14 | . . 1 1 12 Power 1 | . . . . 1 Propulsion 7 | . . . 1 6 Utility 4 | . . . . 4 Weapon 2 | . . 1 . 1 Highest Loss Streak 6 | . . 1 1 6 To Critical Strikes 1 | . . . 1 . Average Slot Usage (%) 84 | . 99 93 97 68 Engine 11 | . 14 14 11 8 Treads 7 | . . . 13 10 Leg 18 | . 28 28 28 7 Device 10 | . 13 14 11 7 Storage 11 | . 14 14 11 8 Processor 4 | . . . . 10 Energy Gun 7 | . 14 14 11 1 Ballistic Gun 8 | . 14 8 11 4 Slashing Weapon 4 | . . . . 9 Naked Turns . | . . . . . Heaviest Build 96 | 13 16 16 15 96 Greatest Support 60 | 20 20 20 30 60 Greatest Overweight (x) 7 | . . . . 7 Average Overweight (x) . | . . . . 1 Largest Inventory Capacity 25 | 8 8 8 8 25 Average Capacity 11 | 6 8 8 8 15 Most Carried 9 | 5 8 8 8 9 Average Carried 6 | 3 7 7 5 6 Final Capacity 25 | 8 8 8 8 25 Final Carried 9 | 4 8 7 7 9 Class Distribution -------------------- 74% | Mutant 13% | Scavenger-Gladiator 11% | Scavenger-Mutant Dominant Class ---------------- Mutant | -10/Materials Mutant | -10/Mines Mutant | -9/Materials Mutant | -8/Materials Resources | -11 -10 -10 -9 -8 ----------- Run | Yrd Mat Min Mat Mat Matter Collected 650 | 215 120 38 32 245 Remotely . | . . . . . Salvage Created 809 | . 187 71 50 501 Parts 36 | . 4 6 1 25 Haulers Intercepted . | . . . . . Recyclers Shooed . | . . . . . Parts Field Recycled . | . . . . . Retrieved Matter . | . . . . . Parts Self-Destructed . | . . . . . Prevented . | . . . . . Kills | -11 -10 -10 -9 -8 ------- Run | Yrd Mat Min Mat Mat Combat Hostiles Destroyed 17 | . 3 3 1 10 Melee 8 | . . . . 8 Guns 9 | . 3 3 1 2 Classes Destroyed 9 | . 2 2 1 4 Builder 1 | . . 1 . . Recycler 1 | . 1 . . . Swarmer 3 | . . 3 . . Cutter 1 | . . . . 1 Grunt 5 | . 3 . . 2 Brawler 2 | . . . . 2 Duelist 2 | . . . . 2 Sentry 3 | . . . 1 2 Hunter 1 | . . . . 1 Best Kill Streak 3 | . 3 2 1 3 Combat Bots Only 3 | . 2 2 1 3 Max Kills in Single Turn 1 | . 1 1 1 1 Gunslinging . | . . . . . Exploded . | . . . . . Melee 1 | . . . . 1 Uniques/NPCs Destroyed . | . . . . . Combat | -11 -10 -10 -9 -8 -------- Run | Yrd Mat Min Mat Mat Hostile Shots Fired 214 | . 36 21 12 145 Missed 55 | . 11 7 1 36 Damage Taken 2439 | . 288 111 155 1885 Core 622 | . 27 33 . 562 Absorbed by Shields . | . . . . . Core Remaining (%) 92 | 100 . 76 100 . Volleys Fired 74 | . 15 20 7 32 Largest 2 | . 2 2 2 1 Hottest 70 | . 70 70 70 28 Shots Fired 98 | . 30 22 14 32 Gun 98 | . 30 22 14 32 Cannon . | . . . . . Launcher . | . . . . . Special . | . . . . . Kinetic 65 | . 15 11 7 32 Thermal 33 | . 15 11 7 . Explosive . | . . . . . Electromagnetic . | . . . . . Robot Hit Streak 17 | . 17 4 7 8 Robot Miss Streak 3 | . 2 2 1 3 Penetration Max 1 | . . . . 1 Secondary Targets . | . . . . . Shots Hit Robots 90 | . 24 14 12 40 Core Hits 33 | . 8 5 3 17 Critical Kills . | . . . . . Critical Parts Destroyed 1 | . . . . 1 Critical Strikes 13 | . 3 3 2 5 Burn 8 | . 3 3 2 . Destroy 1 | . . . . 1 Sever 4 | . . . . 4 Melee Attacks 27 | . . . . 27 Impact . | . . . . . Slashing 27 | . . . . 27 Piercing . | . . . . . Sneak Attacks . | . . . . . Combat Hostiles . | . . . . . Follow-up Attacks 2 | . . . . 2 Damage Inflicted 1544 | . 302 216 123 903 Guns 1034 | . 302 216 123 393 Cannons . | . . . . . Explosions . | . . . . . Melee 510 | . . . . 510 Ramming . | . . . . . Kinetic 710 | . 165 92 60 393 Thermal 324 | . 137 124 63 . Explosive . | . . . . . Electromagnetic . | . . . . . Impact . | . . . . . Slashing 510 | . . . . 510 Piercing . | . . . . . Highest Corruption 7 | . . . . 7 Average Corruption 4 | . . . . 4 Corruption Purged . | . . . . . Corruption Blocked . | . . . . . Effects 7 | . . . . 7 Message Errors 3 | . . . . 3 Matter Fused 1 | . . . . 1 Energy Discharges 1 | . . . . 1 Parts Rejected 1 | . . . . 1 Data Loss (minor) 1 | . . . . 1 Overload Shots . | . . . . . Overflow Damage . | . . . . . Projectiles . | . . . . . Explosions . | . . . . . Melee . | . . . . . Knockbacks . | . . . . . Impact . | . . . . . Kinetic . | . . . . . Secondary . | . . . . . Self-Inflicted Damage . | . . . . . Shots . | . . . . . Rammed . | . . . . . Targets Rammed . | . . . . . Kicked . | . . . . . Crushed . | . . . . . Highest Temperature 204 | . 204 90 88 3 Average Temperature 62 | . 82 45 47 2 Received Heat Transfer 423 | . 162 . 63 198 Siege Activations . | . . . . . Robots Corrupted . | . . . . . Combat Hostiles . | . . . . . Parts Fried . | . . . . . Impact Corruptions . | . . . . . Robots Melted . | . . . . . Combat Hostiles . | . . . . . Parts Melted 7 | . 4 3 . . Heat Transferred 1554 | . 629 592 333 . Parts Sabotaged . | . . . . . Parts Stolen . | . . . . . Parts Stripped . | . . . . . Power Chain Reactions . | . . . . . Alert | -11 -10 -10 -9 -8 ------- Run | Yrd Mat Min Mat Mat Peak Influence 156 | . 105 105 75 156 Initial 40 | . . 40 40 31 Average 52 | . 31 85 50 67 Maximum Alert Level . | . . . . . Low Security (%) 100 | 100 100 100 100 100 Level 1 . | . . . . . Level 2 . | . . . . . Level 3 . | . . . . . Level 4 . | . . . . . Level 5 . | . . . . . High Security . | . . . . . Max Security . | . . . . . Squads Dispatched 6 | . . . . 6 Investigation . | . . . . . Extermination . | . . . . . Reinforcement 2 | . . . . 2 Assault . | . . . . . Garrison 4 | . . . . 4 Intercept . | . . . . . Searches Triggered . | . . . . . Construction Impeded . | . . . . . Haulers Reinforced . | . . . . . Active Scanning Responses . | . . . . . Cargo Convoy Interrupts . | . . . . . Stealth | -11 -10 -10 -9 -8 --------- Run | Yrd Mat Min Mat Mat Distress Signals 6 | . 2 . . 4 Communications Jammed . | . . . . . Distress Signals . | . . . . . Times Spotted 35 | . 11 3 3 18 Peak Tracking Total 4 | . 4 3 2 4 Tactical Retreats 3 | . 2 . . 1 Traps | -11 -10 -10 -9 -8 ------- Run | Yrd Mat Min Mat Mat Traps Triggered . | . . . . . Indirectly . | . . . . . Trap Hack Attempts . | . . . . . Triggered . | . . . . . Disarmed . | . . . . . Reprogrammed . | . . . . . Reused . | . . . . . Traps Extracted . | . . . . . Installed . | . . . . . Triggered . | . . . . . Machines | -11 -10 -10 -9 -8 ---------- Run | Yrd Mat Min Mat Mat Machines Disabled . | . . . . . Max in Single Turn . | . . . . . Machines Repaired . | . . . . . Machines Dismantled . | . . . . . Machines Sabotaged . | . . . . . Overloaded Fab Kills . | . . . . . Hacking | -11 -10 -10 -9 -8 --------- Run | Yrd Mat Min Mat Mat Machines Accessed 1 | . . . . 1 Terminals 1 | . . . . 1 Fabricators . | . . . . . Repair Stations . | . . . . . Recycling Units . | . . . . . Scanalyzers . | . . . . . Garrison Access . | . . . . . Total Hacks 3 | . . . . 3 Successful . | . . . . . Failed 3 | . . . . 3 Catastrophic . | . . . . . Database Lockouts . | . . . . . Manual . | . . . . . Terminals 3 | . . . . 3 Fabricators . | . . . . . Repair Stations . | . . . . . Recycling Units . | . . . . . Scanalyzers . | . . . . . Garrison Access . | . . . . . Terminal Hacks . | . . . . . Fabricator Hacks . | . . . . . Repair Station Hacks . | . . . . . Recycling Unit Hacks . | . . . . . Scanalyzer . | . . . . . Garrison Access Hacks . | . . . . . Unauthorized Hacks . | . . . . . Terminals . | . . . . . Fabricators . | . . . . . Repair Stations . | . . . . . Recycling Units . | . . . . . Scanalyzers . | . . . . . Garrison Access . | . . . . . Data Cores Recovered . | . . . . . Used . | . . . . . Hacking Detections 1 | . . . . 1 Full Trace Events . | . . . . . Feedback Events . | . . . . . Feedback Blocked . | . . . . . Robot Schematics Acquired . | . . . . . Robots Built . | . . . . . Authchips . | . . . . . Time . | . . . . . Total Robot Build Rating . | . . . . . Part Schematics Acquired . | . . . . . Parts Built . | . . . . . Authchips . | . . . . . Time . | . . . . . Total Part Build Rating . | . . . . . Parts Repaired . | . . . . . Time . | . . . . . Parts Recycled . | . . . . . Recycled Matter . | . . . . . Retrieved Matter . | . . . . . Retrieved Components . | . . . . . Parts Scanalyzed . | . . . . . Part Schematics Acquired . | . . . . . Parts Damaged . | . . . . . Bothacking | -11 -10 -10 -9 -8 ------------ Run | Yrd Mat Min Mat Mat Used RIF Installer . | . . . . . Robots Hacked . | . . . . . Non-combat . | . . . . . Combat . | . . . . . Robot Hacks Applied . | . . . . . Relay Couplers Released . | . . . . . Fabnet Peak Effective % . | . . . . . Robots Rewired . | . . . . . Allies Hacked . | . . . . . Hacks Repelled . | . . . . . Allies | -11 -10 -10 -9 -8 -------- Run | Yrd Mat Min Mat Mat Total Allies . | . . . . . Largest Group . | . . . . . Highest-Rated Group . | . . . . . Highest-Rated Ally . | . . . . . Total Orders . | . . . . . Ally Attacks . | . . . . . Total Damage . | . . . . . Kills . | . . . . . Allies Corrupted . | . . . . . Allies Melted . | . . . . . Intel | -11 -10 -10 -9 -8 ------- Run | Yrd Mat Min Mat Mat Robot Analysis Total . | . . . . . Derelict Logs Recovered 1 | . . 1 . . Drone Launches . | . . . . . Drone Recoveries . | . . . . . Exploration | -11 -10 -10 -9 -8 ------------- Run | Yrd Mat Min Mat Mat Turns Passed 1103 | 54 292 66 204 487 Spaces Moved 430 | 43 116 20 138 113 Core 35 | 17 . . . 18 Treads 36 | . . . . 36 Legs 359 | 26 116 20 138 59 Wheels . | . . . . . Hover . | . . . . . Flight . | . . . . . Fastest Speed 50 | 50 120 120 120 90 Average Speed 145 | 92 120 120 120 228 Slowest Speed 480 | 120 120 120 120 480 Overloaded Moves . | . . . . . Propulsion Burnouts . | . . . . . Robots Hopped . | . . . . . Cave-ins Triggered . | . . . . . Exploration Rate (%) 12 | 4 25 10 14 8 Regions Visited 4 Branch Regions 1 Pre-discovered Areas 1 | . . 1 . . Known Exits Taken . | . . . . . Unknown Exits Taken 4 | 1 1 1 1 . Scrap Searched . | . . . . . Spaces Dug . | . . . . . Terrain Destroyed . | . . . . . Melee . | . . . . . Projectile . | . . . . . AOE . | . . . . . Terrain Rammed . | . . . . . Walls Destroyed . | . . . . . Machines Disabled . | . . . . . Actions | -11 -10 -10 -9 -8 --------- Run | Yrd Mat Min Mat Mat Total 775 | 57 241 40 164 273 Wait 173 | . 97 . 14 62 Move 426 | 42 115 19 137 113 Hop . | . . . . . Pick Up 38 | 9 7 . 3 19 Fast Attach 3 | 1 . . . 2 Attach 24 | 5 1 1 3 14 Detach . | . . . . . Swap 9 | . 2 . . 7 Drop 4 | . 4 . . . Fire 74 | . 15 20 7 32 Melee 24 | . . . . 24 Ram . | . . . . . Kick . | . . . . . Crush . | . . . . . Escape Stasis . | . . . . . Rewire . | . . . . . Trap . | . . . . . Miscellaneous . | . . . . . Route ------- -11/Scrapyard -10/Materials -10/Mines -9/Materials -8/Materials History --------- Turn | Location | Event 5 | -11/Scrapyard | Discovered new exit (range 16) 55 | -11/Scrapyard | Entered Materials 284 | -10/Materials | Discovered new exit (range 8) 302 | -10/Materials | Build established: Mutant 347 | -10/Materials | Entered Mines 368 | -10/Mines | Learned location of Zion (-6) 385 | -10/Mines | Discovered new exit (range 16) 413 | -10/Mines | Entered Materials 413 | -9/Materials | Evolved 2 slots: Propulsion x2 608 | -9/Materials | Discovered new exit (range 9) 617 | -9/Materials | Entered another Materials area 617 | -8/Materials | Evolved 2 slots: Utility x2 690 | -8/Materials | Garrison activated, responded to threat 743 | -8/Materials | Core integrity fell below 50% 784 | -8/Materials | Lost 6 parts (1p4n1u) 923 | -8/Materials | Core integrity fell below 20% 1061 | -8/Materials | Garrison activated, responded to threat 1104 | -8/Materials | Destroyed by Y-45 Defender with Heavy Assault Rifle Last Messages --------------- 01084_ Acquired Surge Thruster. 01084_ U-05 Engineer lays Concrete. 01086_ K-01 Serf collects debris. 01086_ U-05 Engineer lays Concrete. 01088_ U-05 Engineer builds a Wall. 01089_ Acquired Surge Thruster. 01090_ Acquired 30 matter. 01092_ U-05 Engineer lays Concrete. 01092_ U-05 Engineer builds a Wall. 01092_ U-05 Engineer lays Concrete. 01094_ U-05 Engineer builds a Wall. 01095_ U-05 Engineer lays Concrete. 01096_ U-05 Engineer builds a Wall. 01097_ U-05 Engineer lays Concrete. 01097_ U-05 Engineer builds a Wall. 01099_ U-05 Engineer lays Concrete. 01102_ Katana follow-up attack on Y-45 Defender. 01102_ Y-45 Defender Beam Rifle severed. 01102_ U-05 Engineer builds a Wall. 01103_ U-05 Engineer lays Concrete. Map ----- +----------------------------------------------------+ | | | | | | | | | | | | | ??????????????????###########????????????????????? | | ??????????????????# #????????????????????? | | ??????####????????# %%[ " #????????????????????? | | ??????#T"#????????# * T" #????????????????????? | | ?????## "########## ][! #????????????????????? | | ?????# #####+#####????????????????????? | | ?????# !* #??????????????????????? | | ?????# [ #??????????????????????? | | ?????# """ / ##?????????????????????? | | ?????####+### """ !%%!"#?????????????????????? | | ????????????## """ [ "#?????????????????????? | | ?????????????# // "#?????????????????????? | | ?????????????# ! T#?????????????????????? | | ?????????????# """ ^ % "#?????????????????????? | | ?????????????# """ !="#?????????????????????? | | ?????????????# """ ^""u "###????#+###??????????? | | ?????????????# """ ####### #####??????? | | ?????????????# a R" uo ?????? | | ?????????????# """ u% ! ?????? | | ?????????????# =% /Y@= % % ?????? | | ?????????? + /u%! ###+### ###????????? | | ?????????????# ########### ???+###??????????? | | ?????????????# ??#### # #????????????????? | | ?????????????# ??????######!!! #????????????????? | | ?????????????# ????????????!!/ #????????????????? | | ?????????????# ??????????????!/ #????????????????? | | ????????????????????????????? #????????????????? | | ????????????????????????????? #????????????????? | | ????????????????????????????? [#????????????????? | | ??????????????????????????????###????????????????? | | ?????????????????????????????????????????????????? | | ?????????????????????????????????????????????????? | | ?????????????????????????????????????????????????? | | ???????????????H?????????????????????????????????? | | ?????????????????????????????????????????????????? | | ?????????????????????????????????????????????????? | | ?????????????????????????????????????????????????? | | ?????????????????????????????????????????????????? | | ?????????????????????????????????????????????????? | | ?????????????????????????????????????????????????? | | ?????????????????????????????????????????????????? | | ?????????????????????????????????????????????????? | | ?????????????????????????????????????????????????? | | ?????????????????????????????????????????????????? | +----------------------------------------------------+ Best States ------------- Heat Dissipation 31 Energy Generation 12 Energy Capacity 265 Matter Stores 300 Matter Capacity 300 Sight Range 16 Robot Scan Range 15 Terrain Scan Density 10 ECM Strength 1 Evasion (%) 55 Melee Accuracy 10 Recoil Reduction 3 Item Schematics ----------------- None Robot Schematics ------------------ None Fabricated ------------ Nothing Alien Tech Used ----------------- None Achievements -------------- None Challenges ------------ None Game ------ Seed FlakSmartbombCycler Manual? 0 Play Time 00:14:20 Cumulative 9.9 hours Start 2024.05.23 @ 19:30:25 End 2024.05.23 @ 19:41:51 Sessions 1 Manual Loads 0 Difficulty Rogue Special Mode None Game No. 20 Rogue 20 Adventurer 0 Explorer 0 Win Type - Total 0 Types 0/0/0/0/0/0/0/0/0 Lore% 13 Gallery% 19 Achievement% 13 Wizard Run 0 Options --------- Layout 1 ASCII 0 Keyboard 0 Movement Mouse Keybinds 0 Fullscreen 2 Font 24/Smallcaps Map View 50x35 Zoom Use 0% Tactical HUD 1 Map Filters NONE Filters NONE Steam 1 RUN: b9870a2a-db73-4be8-aebd-9213ec8b7af6